fUST/lending_fUST_20250422
["ID","MTS","AMOUNT","RATE_DAILY","PERIOD"]
[358645462,1745333447691,-500.0,0.00022191,2]
[358645463,1745333447700,-1499.19,0.00022191,2]
[358645464,1745333447710,-249.563395,0.00022191,7]
[358645465,1745333447720,-500.0,0.00022191,2]
[358645466,1745333447730,-560.1365621,0.00022191,2]
[358645467,1745333447740,-500.0,0.00022191,2]
[358645468,1745333447750,-500.0,0.00022191,2]
[358645469,1745333447759,-500.0,0.00022191,2]
[358645470,1745333447770,-672.1,0.00022191,2]
[358645471,1745333447779,-500.0,0.00022191,2]
[358645472,1745333447789,-500.0,0.00022191,2]
[358645473,1745333447798,-525.06,0.00022191,2]
[358645474,1745333447808,-500.0,0.00022191,2]
[358645475,1745333447818,-500.0,0.00022191,2]
[358645476,1745333447828,-3227.12,0.00022191,2]
[358645477,1745333447837,-500.0,0.00022191,2]
[358645478,1745333447847,-516.69,0.00022191,2]
[358645479,1745333447857,-500.0,0.00022191,2]
[358645480,1745333447867,-826.79,0.00022191,2]
[358645481,1745333447877,-500.0,0.00022191,2]
[358645482,1745333448009,-420.73667954,0.00022226,2]
[358645483,1745333448020,-160.0,0.00022226,2]
[358645484,1745333448031,-729.16666667,0.00022226,2]
[358645485,1745333448042,-160.0,0.00022226,2]
[358645486,1745333448052,-12570.97479393,0.00022226,2]
[358645487,1745333448062,-160.0,0.00022226,2]
[358645488,1745333448072,-151.0,0.00022308,7]
[358645489,1745333448082,-479.942769,0.00022308,7]
[358645490,1745333448097,-479.942769,0.00022308,7]
[358645491,1745333448107,-2396.671822,0.00022308,2]
[358645492,1745333448117,-2396.671822,0.00022308,2]
[358645493,1745333448127,-151.0,0.00022308,7]
[358645494,1745333448139,-151.0,0.00022308,7]
[358645495,1745333448150,-151.0,0.00022308,7]
[358645496,1745333448160,-500.0,0.00022387,2]
[358645497,1745333448171,-507.68983846,0.00022387,2]
[358645498,1745333448182,-465.3295204,0.00022438,2]
[358645499,1745333448192,-174.7434727,0.00022438,2]
[358645500,1745333448202,-174.7434727,0.00022438,2]
[358645501,1745333448212,-174.7434727,0.00022438,2]
[358645502,1745333448222,-174.7434727,0.00022438,2]
[358645503,1745333448231,-174.7434727,0.00022438,2]
[358645504,1745333448242,-174.7434727,0.00022438,2]
[358645505,1745333448252,-166.1871699,0.00022438,2]
[358645506,1745333448262,-420.0,0.00022446,2]
[358645507,1745333448272,-158.55,0.00022458,7]
[358645508,1745333448282,-158.55,0.00022458,7]
[358645509,1745333448292,-151.159272,0.00022465,7]
[358645510,1745333448302,-151.0,0.00022465,7]
[358645511,1745333448312,-151.0,0.00022465,7]
[358645512,1745333448322,-151.0,0.00022465,7]
[358645513,1745333448332,-151.0,0.00022465,7]
[358645514,1745333448343,-151.0,0.00022465,7]
[358645515,1745333448352,-151.0,0.00022465,7]
[358645516,1745333448363,-500.0,0.00022465,2]
[358645517,1745333448372,-151.0,0.00022465,7]
[358645518,1745333448383,-151.0,0.00022465,7]
[358645519,1745333448392,-151.0,0.00022465,7]
[358645520,1745333448402,-151.0,0.00022465,7]
[358645521,1745333448412,-151.0,0.00022465,7]
[358645522,1745333448422,-151.0,0.00022465,7]
[358645523,1745333448431,-333.73093,0.00022465,7]
[358645524,1745333448441,-333.73093,0.00022465,7]
[358645525,1745333448451,-500.0,0.00022465,2]
[358645526,1745333448461,-500.0,0.00022465,2]
[358645527,1745333448470,-500.0,0.00022465,2]
[358645528,1745333448480,-500.0,0.00022465,2]
[358645529,1745333448490,-500.0,0.00022465,2]
[358645530,1745333448500,-500.0,0.00022465,2]
[358645531,1745333448510,-500.0,0.00022465,2]
[358645532,1745333448522,-500.0,0.00022465,2]
[358645533,1745333448532,-500.0,0.00022465,2]
[358645534,1745333448543,-436.69385746,0.00022465,2]
[358645535,1745333448554,-501.69,0.00022465,2]
[358645536,1745333448564,-151.0,0.00022465,7]
[358645537,1745333448575,-267.76766,0.00022465,7]
[358645538,1745333448585,-637.57,0.00022465,2]
[358645539,1745333448595,-267.76766,0.00022465,7]
[358645540,1745333448605,-500.0,0.00022465,2]
[358645541,1745333448615,-541.69,0.00022465,2]
[358645542,1745333448625,-583.74,0.00022465,2]
[358645543,1745333448636,-500.0,0.00022465,2]
[358645544,1745333448646,-500.0,0.00022465,2]
[358645545,1745333448656,-893.33,0.00022465,2]
[358645546,1745333448665,-500.0,0.00022465,2]
[358645547,1745333448675,-500.0,0.00022465,2]
[358645548,1745333448685,-500.0,0.00022465,2]
[358645549,1745333448695,-512.46,0.00022465,2]
[358645550,1745333448705,-500.0,0.00022465,2]
[358645551,1745333448715,-500.0,0.00022465,2]
[358645552,1745333448725,-240.98,0.00022465,2]
[358645553,1745333448735,-500.0,0.00022465,2]
[358645554,1745333448745,-500.0,0.00022465,2]
[358645555,1745333448754,-500.0,0.00022465,2]
[358645556,1745333448765,-151.0,0.00022465,7]
[358645557,1745333448774,-527.35,0.00022465,2]
[358645558,1745333448785,-500.0,0.00022465,2]
[358645559,1745333448794,-500.0,0.00022465,2]
[358645560,1745333448805,-500.0,0.00022465,2]
[358645561,1745333448814,-500.0,0.00022465,2]
[358645562,1745333448824,-642.17,0.00022465,2]
[358645563,1745333448835,-1353.78,0.00022465,2]
[358645564,1745333448844,-510.96,0.00022465,2]
[358645565,1745333448854,-500.0,0.00022465,2]
[358645566,1745333448864,-505.84,0.00022465,2]
[358645567,1745333448875,-500.0,0.00022465,2]
[358645568,1745333448887,-3365.52,0.00022465,2]
[358645569,1745333448897,-500.0,0.00022465,2]
[358645570,1745333448906,-500.0,0.00022465,2]
[358645571,1745333448916,-500.0,0.00022465,2]
[358645572,1745333448926,-500.0,0.00022465,2]
[358645573,1745333448936,-500.0,0.00022465,2]
[358645574,1745333448945,-500.0,0.00022465,2]
[358645575,1745333448955,-500.0,0.00022465,2]
[358645576,1745333448965,-8479.44,0.00022465,2]
[358645577,1745333448975,-151.0,0.00022465,7]
[358645578,1745333448985,-500.0,0.00022465,2]
[358645579,1745333448995,-500.0,0.00022465,2]
[358645580,1745333449005,-506.86,0.00022465,2]
[358645581,1745333449015,-500.0,0.00022465,2]
[358645582,1745333449025,-385.83593172,0.00022465,2]
[358645583,1745333449035,-500.0,0.00022465,2]
[358645584,1745333449044,-540.25,0.00022465,2]
[358645585,1745333449055,-500.0,0.00022465,2]
[358645586,1745333449064,-500.0,0.00022465,2]
[358645587,1745333449075,-500.0,0.00022465,2]
[358645588,1745333449085,-551.84,0.00022465,2]
[358645589,1745333449095,-500.0,0.00022465,2]
[358645590,1745333449109,-500.0,0.00022465,2]
[358645591,1745333449119,-500.0,0.00022465,2]
[358645592,1745333449129,-500.0,0.00022465,2]
[358645593,1745333449140,-2316.24,0.00022465,2]
[358645594,1745333449151,-500.0,0.00022465,2]
[358645595,1745333449161,-239.54659576,0.00022465,2]
[358645596,1745333449171,-534.5,0.00022465,2]
[358645597,1745333449183,-500.0,0.00022465,2]
[358645598,1745333449193,-1304.33,0.00022465,2]
[358645599,1745333449204,-500.0,0.00022465,2]
[358645600,1745333449214,-500.0,0.00022465,2]
[358645601,1745333449224,-500.0,0.00022465,2]
[358645602,1745333449235,-500.0,0.00022465,2]
[358645603,1745333449245,-4224.24,0.00022465,2]
[358645604,1745333449255,-500.0,0.00022465,2]
[358645605,1745333449265,-500.0,0.00022465,2]
[358645606,1745333449275,-500.0,0.00022465,2]
[358645607,1745333449285,-1201.11,0.00022465,2]
[358645608,1745333449295,-535.06,0.00022465,2]
[358645609,1745333449305,-249.563395,0.00022465,7]
[358645610,1745333449314,-1499.19,0.00022465,2]
[358645611,1745333449324,-249.563395,0.00022465,7]
[358645612,1745333449334,-500.0,0.00022465,2]
[358645613,1745333449344,-500.0,0.00022465,2]
[358645614,1745333449354,-672.1,0.00022465,2]
[358645615,1745333449363,-500.0,0.00022465,2]
[358645616,1745333449374,-525.06,0.00022465,2]
[358645617,1745333449385,-500.0,0.00022465,2]
[358645618,1745333449395,-3227.12,0.00022465,2]
[358645619,1745333449405,-500.0,0.00022465,2]
[358645620,1745333449416,-516.69,0.00022465,2]
[358645621,1745333449426,-826.79,0.00022465,2]
[358645622,1745333449436,-500.0,0.00022465,2]
[358645623,1745333449446,-500.0,0.00022466,2]
[358645624,1745333449457,-300.0513796,0.00022466,2]
[358645625,1745333449468,-151.0,0.00022466,2]
[358645626,1745333449478,-151.0,0.00022466,2]
[358645627,1745333449489,-151.0,0.00022466,2]
[358645628,1745333449499,-604.0,0.00022466,2]
[358645629,1745333449508,-151.0,0.00022466,2]
[358645630,1745333449518,-250.0,0.00022621,2]
[358645631,1745333449528,-158.55,0.00022739,7]
[358645632,1745333449538,-158.55,0.00022739,7]
[358645633,1745333449548,-151.0,0.00022739,7]
[358645634,1745333449558,-500.0,0.00022739,2]
[358645635,1745333449569,-500.0,0.00022739,2]
[358645636,1745333449578,-500.0,0.00022739,2]
[358645637,1745333449588,-500.0,0.00022739,2]
[358645638,1745333449598,-500.0,0.00022739,2]
[358645639,1745333449607,-500.0,0.00022739,2]
[358645640,1745333449617,-501.69,0.00022739,2]
[358645641,1745333449626,-637.57,0.00022739,2]
[358645642,1745333449637,-439.88509331,0.00022739,2]
[358645643,1745333449647,-541.69,0.00022739,2]
[358645644,1745333449657,-151.0,0.00022739,7]
[358645645,1745333449667,-583.74,0.00022739,2]
[358645646,1745333449678,-530.6597646,0.00022739,2]
[358645647,1745333449687,-500.0,0.00022739,2]
[358645648,1745333449698,-893.33,0.00022739,2]
[358645649,1745333449707,-500.0,0.00022739,2]
[358645650,1745333449718,-479.942769,0.00022739,7]
[358645651,1745333449728,-479.942769,0.00022739,7]
[358645652,1745333449738,-178.23758236,0.00022739,2]
[358645653,1745333449748,-512.46,0.00022739,2]
[358645654,1745333449757,-2396.671822,0.00022739,2]
[358645655,1745333449767,-2396.671822,0.00022739,2]
[358645656,1745333449777,-500.0,0.00022739,2]
[358645657,1745333449787,-500.0,0.00022739,2]
[358645658,1745333449796,-151.0,0.00022739,7]
[358645659,1745333449806,-527.35,0.00022739,2]
[358645660,1745333449816,-500.0,0.00022739,2]
[358645661,1745333449826,-500.0,0.00022739,2]
[358645662,1745333449836,-500.0,0.00022739,2]
[358645663,1745333449846,-642.17,0.00022739,2]
[358645664,1745333449857,-1353.78,0.00022739,2]
[358645665,1745333449867,-510.96,0.00022739,2]
[358645666,1745333449877,-500.0,0.00022739,2]
[358645667,1745333449887,-500.0,0.00022739,2]
[358645668,1745333449897,-3365.52,0.00022739,2]
[358645669,1745333449907,-500.0,0.00022739,2]
[358645670,1745333449917,-729.16666667,0.00022739,7]
[358645671,1745333449927,-500.0,0.00022739,2]
[358645672,1745333449937,-500.0,0.00022739,2]
[358645673,1745333449946,-151.0,0.00022739,7]
[358645674,1745333449956,-500.0,0.00022739,2]
[358645675,1745333449966,-500.0,0.00022739,2]
[358645676,1745333449976,-500.0,0.00022739,2]
[358645677,1745333449985,-8479.44,0.00022739,2]
[358645678,1745333449995,-196.34559666,0.00022739,2]
[358645679,1745333450005,-506.86,0.00022739,2]
[358645680,1745333450015,-500.0,0.00022739,2]
[358645681,1745333450025,-500.0,0.00022739,2]
[358645682,1745333450034,-540.25,0.00022739,2]
[358645683,1745333450044,-500.0,0.00022739,2]
[358645684,1745333450054,-500.0,0.00022739,2]
[358645685,1745333450063,-500.0,0.00022739,2]
[358645686,1745333450073,-500.0,0.00022739,2]
[358645687,1745333450083,-500.0,0.00022739,2]
[358645688,1745333450094,-500.0,0.00022739,2]
[358645689,1745333450107,-500.0,0.00022739,2]
[358645690,1745333450116,-2316.24,0.00022739,2]
[358645691,1745333450126,-500.0,0.00022739,2]
[358645692,1745333450137,-534.5,0.00022739,2]
[358645693,1745333450147,-162.66506386,0.00022739,2]
[358645694,1745333450157,-1304.33,0.00022739,2]
[358645695,1745333450167,-500.0,0.00022739,2]
[358645696,1745333450178,-500.0,0.00022739,2]
[358645697,1745333450188,-253.67071364,0.00022739,2]
[358645698,1745333450198,-500.0,0.00022739,2]
[358645699,1745333450209,-4224.24,0.00022739,2]
[358645700,1745333450219,-500.0,0.00022739,2]
[358645701,1745333450231,-500.0,0.00022739,2]
[358645702,1745333450240,-645.74,0.00022739,2]
[358645703,1745333450252,-1201.11,0.00022739,2]
[358645704,1745333450261,-535.06,0.00022739,2]
[358645705,1745333450272,-1499.19,0.00022739,2]
[358645706,1745333450282,-151.0,0.00022739,7]
[358645707,1745333450292,-500.0,0.00022739,2]
[358645708,1745333450302,-672.1,0.00022739,2]
[358645709,1745333450312,-500.0,0.00022739,2]
[358645710,1745333450322,-525.06,0.00022739,2]
[358645711,1745333450332,-500.0,0.00022739,2]
[358645712,1745333450342,-3227.12,0.00022739,2]
[358645713,1745333450352,-500.0,0.00022739,2]
[358645714,1745333450361,-516.69,0.00022739,2]
[358645715,1745333450371,-826.79,0.00022739,2]
[358645716,1745333450381,-151.0,0.00022739,7]
[358645717,1745333450392,-293.18206662,0.00022883,2]
[358645718,1745333450402,-151.0,0.000229,5]
[358645719,1745333450412,-1873.97948625,0.00023,2]
[358645720,1745333450423,-267.76766,0.00023,7]
[358645721,1745333450432,-267.76766,0.00023,7]
[358645722,1745333450442,-151.0,0.00023012,2]
[358645723,1745333450452,-151.0,0.00023013,7]
[358645724,1745333450462,-151.0,0.00023013,7]
[358645725,1745333450473,-151.0,0.00023013,7]
[358645726,1745333450483,-151.0,0.00023013,7]
[358645727,1745333450492,-151.0,0.00023013,7]
[358645728,1745333450502,-864.530405,0.00023013,7]
[358645729,1745333450513,-864.530405,0.00023013,7]
[358645730,1745333450523,-151.0,0.00023013,7]
[358645731,1745333450679,-161.223709,0.00023013,7]
[358645732,1745333450690,-300.07384637,0.00023013,2]
[358645733,1745333450701,-208.62386263,0.00023013,2]
[358645734,1745333450711,-151.0,0.00023013,2]
[358645735,1745333450721,-210.266833,0.00023013,7]
[358645736,1745333450730,-151.0,0.00023013,7]
[358645737,1745333450740,-151.0,0.00023013,7]
[358645738,1745333450749,-151.0,0.00023013,7]
[358645739,1745333450759,-151.0,0.00023013,2]
[358645740,1745333450769,-151.0,0.00023013,7]
[358645741,1745333450778,-333.73093,0.00023013,7]
[358645742,1745333450788,-333.73093,0.00023013,7]
[358645743,1745333450797,-611.03545155,0.00023013,2]
[358645744,1745333450807,-500.0,0.00023013,2]
[358645745,1745333450817,-500.0,0.00023013,2]
[358645746,1745333450826,-500.0,0.00023013,2]
[358645747,1745333450836,-500.0,0.00023013,2]
[358645748,1745333450847,-501.69,0.00023013,2]
[358645749,1745333450857,-151.0,0.00023013,7]
[358645750,1745333450866,-637.57,0.00023013,2]
[358645751,1745333450876,-541.69,0.00023013,2]
[358645752,1745333450888,-583.74,0.00023013,2]
[358645753,1745333450897,-500.0,0.00023013,2]
[358645754,1745333450907,-893.33,0.00023013,2]
[358645755,1745333450917,-500.0,0.00023013,2]
[358645756,1745333450927,-512.46,0.00023013,2]
[358645757,1745333450937,-500.0,0.00023013,2]
[358645758,1745333450947,-500.0,0.00023013,2]
[358645759,1745333450958,-151.0,0.00023013,7]
[358645760,1745333450967,-527.35,0.00023013,2]
[358645761,1745333450978,-500.0,0.00023013,2]
[358645762,1745333450988,-500.0,0.00023013,2]
[358645763,1745333450998,-500.0,0.00023013,2]
[358645764,1745333451008,-642.17,0.00023013,2]
[358645765,1745333451018,-1353.78,0.00023013,2]
[358645766,1745333451028,-510.96,0.00023013,2]
[358645767,1745333451038,-500.0,0.00023013,2]
[358645768,1745333451048,-500.0,0.00023013,2]
[358645769,1745333451058,-3365.52,0.00023013,2]
[358645770,1745333451068,-283.31993235,0.00023013,2]
[358645771,1745333451078,-500.0,0.00023013,2]
[358645772,1745333451089,-500.0,0.00023013,2]
[358645773,1745333451101,-151.0,0.00023013,7]
[358645774,1745333451111,-500.0,0.00023013,2]
[358645775,1745333451122,-500.0,0.00023013,2]
[358645776,1745333451133,-500.0,0.00023013,2]
[358645777,1745333451145,-8479.44,0.00023013,2]
[358645778,1745333451155,-151.0,0.00023013,7]
[358645779,1745333451165,-506.86,0.00023013,2]
[358645780,1745333451178,-500.0,0.00023013,2]
[358645781,1745333451188,-500.0,0.00023013,2]
[358645782,1745333451199,-540.25,0.00023013,2]
[358645783,1745333451210,-500.0,0.00023013,2]
[358645784,1745333451219,-500.0,0.00023013,2]
[358645785,1745333451229,-500.0,0.00023013,2]
[358645786,1745333451239,-500.0,0.00023013,2]
[358645787,1745333451249,-500.0,0.00023013,2]
[358645788,1745333451259,-500.0,0.00023013,2]
[358645789,1745333451269,-500.0,0.00023013,2]
[358645790,1745333451280,-2316.24,0.00023013,2]
[358645791,1745333451290,-500.0,0.00023013,2]
[358645792,1745333451300,-534.5,0.00023013,2]
[358645793,1745333451310,-1304.33,0.00023013,2]
[358645794,1745333451320,-500.0,0.00023013,2]
[358645795,1745333451330,-500.0,0.00023013,2]
[358645796,1745333451340,-500.0,0.00023013,2]
[358645797,1745333451349,-4224.24,0.00023013,2]
[358645798,1745333451358,-500.0,0.00023013,2]
[358645799,1745333451368,-500.0,0.00023013,2]
[358645800,1745333451378,-1201.11,0.00023013,2]
[358645801,1745333451389,-535.06,0.00023013,2]
[358645802,1745333451398,-249.563395,0.00023013,7]
[358645803,1745333451409,-1499.19,0.00023013,2]
[358645804,1745333451419,-249.563395,0.00023013,7]
[358645805,1745333451429,-500.0,0.00023013,2]
[358645806,1745333451439,-672.1,0.00023013,2]
[358645807,1745333451450,-500.0,0.00023013,2]
[358645808,1745333451460,-525.06,0.00023013,2]
[358645809,1745333451470,-500.0,0.00023013,2]
[358645810,1745333451480,-3227.12,0.00023013,2]
[358645811,1745333451489,-500.0,0.00023013,2]
[358645812,1745333451500,-516.69,0.00023013,2]
[358645813,1745333451510,-826.79,0.00023013,2]
[358645814,1745333451520,-152.0,0.00023014,2]
[358645815,1745333451530,-500.0,0.00023014,2]
[358645816,1745333451540,-151.0,0.00023014,2]
[358645817,1745333451551,-260.12531393,0.00023014,2]
[358645818,1745333451561,-151.0,0.00023014,2]
[358645819,1745333451571,-151.0,0.00023014,7]
[358645820,1745333451580,-151.0,0.00023014,2]
[358645821,1745333451590,-151.0,0.00023014,2]
[358645822,1745333451600,-184.116,0.00023072,2]
[358645823,1745333451612,-493.326,0.00023185,3]
[358645824,1745333451622,-1940.57105073,0.00023216,2]
[358645825,1745333451632,-151.0,0.00023287,7]
[358645826,1745333451643,-151.0,0.00023287,7]
[358645827,1745333451653,-151.0,0.00023287,7]
[358645828,1745333451662,-151.0,0.00023287,7]
[358645829,1745333451672,-151.0,0.00023287,7]
[358645830,1745333451681,-152.07867,0.00023287,7]
[358645831,1745333451691,-151.0,0.00023287,7]
[358645832,1745333451701,-155.495855,0.00023287,7]
[358645833,1745333451711,-864.530405,0.00023287,7]
[358645834,1745333451722,-864.530405,0.00023287,7]
[358645835,1745333451732,-158.55,0.00023287,7]
[358645836,1745333451743,-158.55,0.00023287,7]
[358645837,1745333451753,-151.0,0.00023287,7]
[358645838,1745333451765,-151.0,0.00023287,7]
[358645839,1745333451775,-156.292858,0.00023287,7]
[358645840,1745333451785,-151.0,0.00023287,7]
[358645841,1745333451795,-151.0,0.00023287,7]
[358645842,1745333451804,-151.0,0.00023287,7]
[358645843,1745333451814,-151.0,0.00023287,7]
[358645844,1745333451823,-151.0,0.00023287,7]
[358645845,1745333451833,-151.0,0.00023287,7]
[358645846,1745333451843,-483.86289124,0.00023287,2]
[358645847,1745333451852,-500.0,0.00023287,2]
[358645848,1745333451862,-500.0,0.00023287,2]
[358645849,1745333451872,-500.0,0.00023287,2]
[358645850,1745333451882,-501.69,0.00023287,2]
[358645851,1745333451893,-267.76766,0.00023287,7]
[358645852,1745333451904,-637.57,0.00023287,2]
[358645853,1745333451913,-267.76766,0.00023287,7]
[358645854,1745333451924,-541.69,0.00023287,2]
[358645855,1745333451935,-151.0,0.00023287,7]
[358645856,1745333451950,-583.74,0.00023287,2]
[358645857,1745333451961,-254.44317118,0.00023287,2]
[358645858,1745333451970,-893.33,0.00023287,2]
[358645859,1745333451981,-446.62507354,0.00023287,2]
[358645860,1745333452410,-502.89055827,0.00021917,2]
[358645861,1745333452421,-322.0,0.00022,2]
[358645862,1745333452432,-2055.50944278,0.00022191,2]
[358645863,1745333452527,-409.97055722,0.00022191,2]
[358645864,1745333452538,-322.0,0.00022192,2]
[358645865,1745333452549,-175.36944278,0.00022465,2]
[358645866,1745333452565,-2290.11055722,0.00022465,2]
[358645867,1745333452575,-500.0,0.00022739,2]
[358645868,1745333452586,-2465.48,0.00022739,2]
[358645869,1745333452595,-500.0,0.00023013,2]
[358645870,1745333452605,-1114.94624915,0.00023013,2]
[358645873,1745334078203,531.9034829,0.00019884,2]
[358645874,1745334141049,-195.38951198,0.00020365,2]
[358645875,1745334141077,-1000.0,0.000205,2]
[358645876,1745334141104,-187.01536612,0.00020811,2]
[358645877,1745334141135,-300.0,0.00020908,2]
[358645878,1745334141165,-300.0,0.00020909,2]
[358645879,1745334141193,-300.0,0.00020909,2]
[358645880,1745334141227,-315.02184672,0.00020909,2]
[358645881,1745334141261,-500.0,0.00020909,2]
[358645882,1745334141304,-902.57327518,0.00020909,2]
[358645883,1745334203162,-1697.99966945,0.00020809,2]
[358645884,1745334203186,-541.9127147,0.00020809,2]
[358645885,1745334203210,-300.0,0.00020907,2]
[358645886,1745334203234,-220.51529271,0.00020908,2]
[358645887,1745334203262,-500.0,0.00020908,2]
[358645888,1745334203295,-500.0,0.00020908,2]
[358645889,1745334203321,-500.0,0.00020908,2]
[358645890,1745334203354,-500.0,0.00020908,2]
[358645891,1745334203383,-239.57232314,0.00020908,2]
[358646090,1745334637259,-1485.74971076,0.00020805,2]
[358646091,1745334637270,-335.74057324,0.00020805,2]
[358646092,1745334637280,-335.74057322,0.00020874,2]
[358646093,1745334637290,-300.0,0.00020896,2]
[358646094,1745334637300,-9117.9,0.00020897,3]
[358646095,1745334637310,-4558.95,0.00020897,3]
[358646096,1745334637319,-2279.48,0.00020897,3]
[358646097,1745334637330,-355.03116255,0.00020904,2]
[358646098,1745334637340,-222.91296371,0.00020904,2]
[358646099,1745334637350,-228.32819627,0.00020904,2]
[358646100,1745334637360,-500.0,0.00020904,2]
[358646101,1745334637370,-500.0,0.00020904,2]
[358646102,1745334637380,-844.28047565,0.00020904,2]
[358646103,1745334637391,-500.0,0.00020904,2]
[358646104,1745334637400,-844.28047565,0.00020904,2]
[358646105,1745334637411,-401.69852429,0.00020904,2]
[358646106,1745334637420,-844.28047565,0.00020904,2]
[358646107,1745334637431,-500.0,0.00020904,2]
[358646108,1745334637441,-500.0,0.00020904,2]
[358646109,1745334637450,-844.28047565,0.00020904,2]
[358646110,1745334637460,-500.0,0.00020904,2]
[358646111,1745334637470,-844.28047565,0.00020904,2]
[358646112,1745334637481,-186.26780559,0.00020904,2]
[358646113,1745334637491,-844.28047565,0.00020904,2]
[358646115,1745334637506,-844.28047565,0.00020904,2]
[358646117,1745334637516,-844.28047565,0.00020904,2]
[358646120,1745334637526,-844.28047565,0.00020904,2]
[358646122,1745334637536,-844.28047565,0.00020904,2]
[358646124,1745334637546,-844.28047565,0.00020904,2]
[358646126,1745334637555,-844.28047565,0.00020904,2]
[358646127,1745334637565,-844.28047565,0.00020904,2]
[358646128,1745334637576,-844.28047565,0.00020904,2]
[358646129,1745334637586,-681.55978897,0.00020904,2]
[358646132,1745334637657,-162.72068668,0.00020904,2]
[358646134,1745334637668,-844.28047565,0.00020904,2]
[358646135,1745334637678,-844.28047565,0.00020904,2]
[358646136,1745334637688,-844.28047565,0.00020904,2]
[358646137,1745334637698,-844.28047565,0.00020904,2]
[358646138,1745334637708,-844.28047565,0.00020904,2]
[358646140,1745334637718,-844.28047565,0.00020904,2]
[358646142,1745334637728,-844.28047565,0.00020904,2]
[358646143,1745334637737,-844.28047565,0.00020904,2]
[358646144,1745334637747,-844.28047565,0.00020904,2]
[358646145,1745334637757,-844.28047565,0.00020904,2]
[358646146,1745334637767,-844.28047565,0.00020904,2]
[358646147,1745334637777,-844.28047565,0.00020904,2]
[358646148,1745334637786,-844.28047565,0.00020904,2]
[358646149,1745334637796,-844.28047565,0.00020904,2]
[358646150,1745334637806,-844.28047565,0.00020904,2]
[358646151,1745334637816,-844.28047565,0.00020904,2]
[358646152,1745334637826,-844.28047565,0.00020904,2]
[358646153,1745334637836,-844.28047565,0.00020904,2]
[358646154,1745334637845,-844.28047565,0.00020904,2]
[358646155,1745334637855,-844.28047565,0.00020904,2]
[358646156,1745334637865,-844.28047565,0.00020904,2]
[358646158,1745334637875,-844.28047565,0.00020904,2]
[358646160,1745334637885,-844.28047565,0.00020904,2]
[358646161,1745334637897,-844.28047565,0.00020904,2]
[358646162,1745334637907,-844.28047565,0.00020904,2]
[358646163,1745334637917,-844.28047565,0.00020904,2]
[358646165,1745334637928,-844.28047565,0.00020904,2]
[358646167,1745334637938,-15090.12643547,0.00020906,2]
[358646169,1745334637949,-500.0,0.00020907,2]
[358646171,1745334637960,-335.74057322,0.00020943,2]
[358646173,1745334637970,-300.0,0.00021,2]
[358646175,1745334637980,-502.97156,0.00021,2]
[358646177,1745334637989,-335.74057322,0.00021012,2]
[358646179,1745334637999,-500.0,0.00021073,2]
[358646181,1745334638009,-335.74057322,0.00021081,2]
[358646183,1745334638018,-275560.9811843,0.00021096,2]
[358646185,1745334638031,-94439.0188157,0.00021096,2]
[358646187,1745334638041,-500.0,0.00021181,2]